bitfinex/quotes_ETHUSD_20240819
["timestamp","ask_amount","ask_price","bid_price","bid_amount"]
[1724060357986,1.12066953,2622.4,2622.1,3.81363]
[1724060359536,4.93396953,2622.4,2621.9,7.62781]
[1724060360090,4.93396953,2622.4,2621.9,7.62784]
[1724060360352,0.87471795,2622.3,2622.0,3.81386]
[1724060360664,3.35111795,2622.3,2622.0,3.81386]
[1724060360962,0.55526394,2622.2,2622.0,3.81386]
[1724060361314,0.88403514,2622.2,2622.0,3.81386]
[1724060361572,0.55526394,2622.1,2622.0,3.81386]
[1724060362152,3.35111795,2622.3,2622.0,3.81386]
[1724060362355,0.55526394,2622.1,2622.0,3.81386]
[1724060362520,6.96824996,2622.5,2622.0,3.81386]
[1724060362713,0.55526394,2622.1,2622.0,3.81386]
[1724060362919,0.58144799,2622.4,2622.0,3.81386]
[1724060362920,3.81336,2622.4,2622.0,3.81386]
[1724060363128,0.55526394,2622.1,2622.0,3.81386]
[1724060363330,4.61393996,2622.4,2622.0,3.81386]
[1724060363530,0.55526394,2622.1,2622.0,3.81386]
[1724060363728,1.078161,2622.3,2622.0,3.81386]
[1724060363938,0.54929937,2622.1,2622.0,3.81386]
[1724060364170,1.078161,2622.3,2622.0,3.81386]
[1724060364369,0.54928163,2622.1,2622.0,3.81386]
[1724060364583,1.078161,2622.3,2622.0,3.81386]
[1724060364795,0.54928163,2622.1,2621.9,3.81401]
[1724060364946,1.078161,2622.3,2621.9,3.81401]
[1724060365151,0.54928163,2622.0,2621.9,3.81401]
[1724060365650,1.87874096,2622.3,2621.9,3.81401]
[1724060365959,0.54928163,2622.0,2621.9,3.81401]
[1724060366697,0.80057996,2622.3,2621.9,3.81401]
[1724060366881,0.54928163,2622.0,2621.9,3.81401]
[1724060367077,0.80057996,2622.3,2621.9,3.81401]
[1724060367438,0.54928163,2622.0,2621.9,3.81401]
[1724060367579,0.80057996,2622.2,2621.9,3.81401]
[1724060367778,0.54928163,2622.2,2621.9,3.81401]
[1724060368209,0.54928163,2622.1,2621.9,3.81401]
[1724060369021,0.54928163,2622.1,2622.0,3.81388]
[1724060370078,0.54928163,2622.1,2621.9,3.814]
[1724060370279,0.54928163,2622.1,2622.0,3.81388]
[1724060371095,0.54928163,2622.1,2621.9,3.814]
[1724060372173,0.54928163,2622.1,2621.8,9.26323]
[1724060372526,0.54928163,2622.1,2621.9,3.81402]
[1724060377136,0.54928163,2622.1,2622.0,5.44888]
[1724060378725,1.34986159,2622.1,2622.0,5.44888]
[1724060378927,0.54928163,2622.1,2622.0,5.44888]
[1724060379141,1.34986159,2622.1,2622.0,5.44888]
[1724060379762,0.54928163,2622.1,2622.0,9.26276]
[1724060380498,0.54928163,2622.1,2622.0,16.264016]
[1724060380642,0.80057996,2622.6,2622.5,3.81315]
[1724060382481,0.79982138,2622.6,2622.5,3.81315]
[1724060382983,0.79982238,2622.6,2622.5,3.81315]
[1724060383193,0.79982238,2622.6,2622.4,3.81327]
[1724060383486,0.79983407,2622.5,2622.3,3.81334]
[1724060383785,0.79983407,2622.5,2622.4,3.8133]
[1724060390039,1.20086994,2622.5,2622.4,3.8133]
[1724060390846,1.74979209,2622.5,2622.4,3.8133]
[1724060392077,1.74979209,2622.5,2622.1,3.81373]
[1724060392078,4.35156158,2622.5,2622.1,3.81373]
[1724060392286,0.80053992,2622.3,2622.1,3.81373]
[1724060392444,0.80053992,2622.2,2622.1,3.81373]
[1724060392645,0.80053992,2622.2,2622.1,6.81373]
[1724060392845,1.34828494,2622.2,2622.1,6.81373]
[1724060393866,1.34828494,2622.2,2622.1,10.62746]
[1724060394053,0.54774502,2622.2,2622.1,14.75106]
[1724060394253,0.80053992,2622.3,2622.2,3.81359]
[1724060394472,1.34828494,2622.3,2622.2,3.81359]
[1724060397976,1.34828494,2622.3,2622.2,7.62718]
[1724060398190,0.54774502,2622.3,2622.2,9.483645]
[1724060398392,0.54774502,2622.3,2622.2,11.876645]
[1724060399002,0.80053992,2622.5,2622.4,7.6266]
[1724060399726,0.80053992,2622.6,2622.5,7.6263]
[1724060401222,1.20086994,2622.6,2622.5,7.6263]
[1724060402103,1.20086994,2622.6,2622.5,3.81315]
[1724060402308,1.59690283,2622.7,2622.6,7.626]
[1724060402556,1.20055038,2622.7,2622.6,3.813]
[1724060402719,1.20055038,2622.8,2622.6,3.813]
[1724060403308,1.20055038,2622.8,2622.5,7.78455]
[1724060403309,1.20055038,2622.8,2622.7,3.81286]
[1724060405243,1.20055038,2622.8,2622.6,3.81298]
[1724060405426,0.80014377,2622.7,2622.6,3.81298]
[1724060405647,1.20055038,2622.8,2622.6,3.81298]
[1724060406030,0.54779912,2622.7,2622.6,3.81298]
[1724060406417,0.80008537,2622.7,2622.6,3.81298]
[1724060406619,1.34788449,2622.7,2622.6,3.81298]
[1724060407236,0.54779912,2622.7,2622.6,3.81298]
[1724060407554,1.93142806,2622.7,2622.4,3.81323]
[1724060407847,0.80010672,2622.5,2622.4,3.81323]
[1724060408436,1.20016009,2622.5,2622.3,3.81341]
[1724060408637,0.80014635,2622.4,2622.3,3.81334]
[1724060409217,1.34797551,2622.4,2622.3,3.81334]
[1724060410462,1.34797551,2622.4,2622.3,5.44834]
[1724060411934,1.34797551,2622.4,2622.3,3.81334]
[1724060412125,1.34797551,2622.4,2622.2,3.81359]
[1724060412327,1.76247935,2622.4,2622.1,10.93111]
[1724060412529,1.34797551,2622.4,2622.2,3.0]
[1724060413112,1.34797551,2622.4,2622.3,3.81344]
[1724060413920,0.54782916,2622.4,2622.3,3.81344]
[1724060414118,1.74798925,2622.4,2622.3,3.81344]
[1724060414862,1.34820328,2622.4,2622.3,3.81344]
[1724060415213,1.74798925,2622.4,2622.2,6.81356]
[1724060415415,0.80041211,2622.3,2622.2,6.81356]
[1724060416163,0.54782916,2622.3,2622.2,6.81356]
[1724060416366,1.34824127,2622.3,2622.2,6.81356]
[1724060419061,1.34824127,2622.3,2622.2,3.0]
[1724060419221,3.81359,2622.2,2621.7,6.22089]
[1724060419425,0.8007507,2621.9,2621.5,6.22122]
[1724060419625,0.8007507,2621.8,2621.5,11.67074]
[1724060419930,1.34855283,2621.7,2621.5,11.67074]
[1724060420434,1.34855283,2621.7,2621.5,7.85622]
[1724060420636,1.60352072,2621.7,2621.4,3.81473]
[1724060420837,0.8007507,2621.5,2621.4,3.81473]
[1724060421237,1.34842062,2621.5,2621.2,1.635]
[1724060421438,1.34842062,2621.5,2621.3,3.81488]
[1724060422168,1.34842062,2621.5,2621.4,3.0]
[1724060422627,0.54766992,2621.5,2621.4,3.0]
[1724060424047,0.54766992,2621.5,2621.3,3.0]
[1724060424854,0.54766992,2621.5,2621.3,6.81488]
[1724060425054,0.54766992,2621.5,2621.3,10.62971]
[1724060425375,0.8007507,2621.7,2621.4,1.635]
[1724060425577,2.18032845,2621.7,2621.4,1.635]
[1724060425984,0.8007507,2621.7,2621.4,5.44974]
[1724060426281,0.8007507,2621.7,2621.4,1.635]
[1724060426871,4.6150707,2621.7,2621.4,1.635]
[1724060427236,3.81454,2621.6,2621.3,3.0]
[1724060427444,3.81454,2621.6,2621.2,1.635]
[1724060427445,5.00893768,2621.6,2621.2,4.635]
[1724060427942,5.00893768,2621.6,2621.2,8.44997]
[1724060428156,3.81486,2621.4,2621.2,3.0]
[1724060428357,3.81486,2621.4,2620.9,5.45036]
[1724060428358,3.8149,2621.3,2620.9,5.45036]
[1724060428682,6.8976207,2621.4,2620.9,9.26574]
[1724060428839,6.8976207,2621.4,2620.9,9.26576]
[1724060429497,6.8976207,2621.4,2620.9,5.45036]
[1724060429684,12.08133003,2621.4,2620.9,3.81536]
[1724060429845,8.26649003,2621.4,2620.9,5.45036]
[1724060430180,4.39558884,2621.5,2621.1,7.77028]
[1724060430387,3.81462,2621.5,2621.1,7.77028]
[1724060430947,3.81462,2621.5,2621.1,1.635]
[1724060431261,3.81476,2621.4,2621.1,1.635]
[1724060431455,5.15866784,2621.4,2621.1,1.635]
[1724060431666,5.15866784,2621.4,2621.0,3.81532]
[1724060432488,7.52526784,2621.4,2621.0,3.81532]
[1724060432850,7.52526784,2621.4,2620.9,3.9049]
[1724060432851,3.81493,2621.3,2620.9,5.45047]
[1724060433186,4.56745678,2621.3,2620.9,5.45047]
[1724060434090,4.56745678,2621.3,2620.8,3.8156]
[1724060434091,3.81504,2621.2,2620.8,3.8156]
[1724060434398,4.88993268,2621.2,2620.8,3.81554]
[1724060436004,0.58739872,2621.1,2620.8,3.81554]
[1724060437478,3.08459872,2621.1,2620.8,3.81554]
[1724060437679,3.08459872,2621.1,2620.7,5.45075]
[1724060437911,0.79745314,2621.0,2620.7,5.45075]
[1724060438226,2.4972,2621.1,2620.7,5.45075]
[1724060438381,0.58739872,2620.9,2620.7,5.45075]
[1724060438580,6.3124,2621.1,2620.7,5.45075]
[1724060438794,0.58739872,2620.8,2620.7,5.45075]
[1724060438994,6.3124,2621.1,2620.7,5.45075]
[1724060439304,6.3124,2621.1,2620.7,3.81575]
[1724060439528,0.58739872,2621.0,2620.7,5.45075]
[1724060439676,3.8155,2620.9,2620.6,3.0]
[1724060439877,3.8155,2620.9,2620.3,6.28027]
[1724060440223,3.81578,2620.7,2620.3,6.28027]
[1724060440517,3.01019872,2620.8,2619.9,3.81686]
[1724060440518,3.81608,2620.5,2620.0,3.81668]
[1724060440675,3.81608,2620.5,2620.0,3.81679]
[1724060440875,0.58721228,2620.4,2620.0,3.81679]
[1724060441275,3.81636,2620.3,2619.9,7.63377]
[1724060441476,0.58695359,2620.2,2619.9,7.6337]
[1724060441713,0.58695359,2620.2,2620.0,3.81678]
[1724060441913,4.8597278,2620.5,2620.0,3.81678]
[1724060441914,0.58694757,2620.1,2620.0,8.668651]
[1724060442211,7.34,2620.7,2620.4,3.81616]
[1724060442715,7.34,2620.7,2620.3,3.81634]
[1724060442932,1.36414,2620.6,2620.3,3.81634]
[1724060443221,7.34,2620.7,2620.4,3.8162]
[1724060443390,7.34,2620.7,2620.0,5.29]
[1724060443391,7.34,2620.7,2620.1,2.3333]
[1724060443590,7.34,2620.7,2620.6,7.63184]
[1724060443888,6.06702,2621.2,2620.8,3.81555]
[1724060443889,2.2519,2621.2,2620.8,3.81555]
[1724060444403,1.340683,2621.1,2620.8,3.81555]
[1724060444776,7.34,2621.3,2620.9,3.81546]
[1724060444973,7.62969,2621.4,2620.9,3.81546]
[1724060445173,4.810679,2621.3,2620.9,3.81546]
[1724060445674,3.81505,2621.2,2620.8,3.8156]
[1724060446100,3.81505,2621.2,2620.7,3.81564]
[1724060446301,4.2962709,2621.1,2620.7,3.81564]
[1724060446505,0.4810809,2621.1,2620.7,3.81564]
[1724060447685,2.3279,2621.5,2620.8,3.81554]
[1724060447686,3.8149,2621.3,2620.8,3.81554]
[1724060448230,3.81479,2621.4,2620.9,3.81546]
[1724060448518,6.14257,2621.5,2621.0,3.81527]
[1724060448841,5.544466,2621.4,2621.0,3.81527]
[1724060448980,3.81462,2621.5,2621.0,3.81527]
[1724060449183,11.15449,2621.6,2621.1,3.81517]
[1724060449493,13.56655842,2621.6,2621.1,3.81517]
[1724060449708,6.22655842,2621.6,2621.1,7.63029]
[1724060449912,3.81462,2621.5,2621.1,3.81512]
[1724060450222,3.81462,2621.5,2621.0,3.81531]
[1724060450426,8.63001235,2621.5,2621.0,3.81531]
[1724060450800,3.81477,2621.4,2621.0,3.81531]
[1724060451005,4.40143028,2621.4,2620.9,9.99628]
[1724060451326,5.32310354,2621.4,2620.9,9.99628]
[1724060451698,5.32310354,2621.4,2621.0,3.81533]
[1724060452891,1.50833354,2621.4,2621.0,3.81533]
[1724060453121,0.58666028,2621.4,2621.0,3.81533]
[1724060453601,4.40142028,2621.4,2621.0,3.81533]
[1724060454704,0.58666028,2621.4,2621.0,3.81533]
[1724060455929,0.58666028,2621.4,2621.1,3.81517]
[1724060460226,0.58666028,2621.4,2621.2,3.81501]
[1724060461002,0.58666028,2621.4,2621.1,3.81517]
[1724060461242,0.58666028,2621.4,2621.1,7.63026]
[1724060461546,0.58666028,2621.4,2621.1,3.81509]
[1724060461713,0.58666028,2621.4,2621.2,3.81496]
[1724060462639,0.58666028,2621.4,2621.3,3.8149]
[1724060462839,0.58666028,2621.4,2621.3,9.9831]
[1724060463047,0.58666028,2621.4,2621.3,14.79631]
[1724060463250,0.58666028,2621.4,2621.3,17.79631]
[1724060463561,0.8007507,2621.7,2621.6,3.81434]
[1724060464202,0.8007507,2621.8,2621.6,3.81434]
[1724060464406,0.8007507,2621.7,2621.6,3.81434]
[1724060464722,0.8007507,2621.8,2621.6,3.81434]
[1724060465426,0.8007507,2621.7,2621.6,3.81434]
[1724060466055,1.38750424,2621.7,2621.6,3.81434]
[1724060466425,1.38750424,2621.7,2621.5,3.81459]
[1724060466950,1.38750424,2621.7,2621.6,3.81446]
[1724060471248,0.58675354,2621.7,2621.6,3.81446]
[1724060471618,0.8007507,2621.8,2621.6,3.81446]
[1724060471822,0.58675354,2621.7,2621.6,3.81446]
[1724060472146,0.8007507,2621.8,2621.6,3.81446]
[1724060472341,0.58675354,2621.7,2621.6,3.81446]
[1724060472532,0.8007507,2621.8,2621.6,3.81446]
[1724060472733,0.58675354,2621.7,2621.6,3.81446]
[1724060472928,0.8007507,2621.8,2621.6,3.81446]
[1724060473135,0.58675354,2621.7,2621.6,3.81446]
[1724060473453,0.8007507,2621.8,2621.6,3.81446]
[1724060473615,0.58675354,2621.7,2621.6,3.81446]
[1724060473962,0.8007507,2621.8,2621.6,3.81446]
[1724060474255,0.58675354,2621.7,2621.6,3.81446]
[1724060474560,0.8007507,2621.8,2621.6,3.81446]
[1724060474755,0.58675354,2621.7,2621.6,3.81446]
[1724060474970,0.8007507,2621.8,2621.6,3.81446]
[1724060475148,0.58675354,2621.7,2621.6,3.81446]
[1724060475454,0.8007507,2621.8,2621.6,3.81446]
[1724060475654,0.58675354,2621.7,2621.6,3.81446]
[1724060476360,0.8007507,2621.8,2621.6,3.81446]
[1724060476561,0.58675354,2621.7,2621.6,3.81446]
[1724060477097,0.8007507,2621.8,2621.6,3.81446]
[1724060477267,0.58675354,2621.7,2621.6,3.81446]
[1724060477624,0.8007507,2621.8,2621.6,7.62892]
[1724060477828,0.58675354,2621.7,2621.6,3.81446]
[1724060478262,0.8007507,2621.8,2621.6,3.81446]
[1724060478569,0.58675354,2621.7,2621.6,3.81446]
[1724060479025,0.8007507,2621.8,2621.6,3.81446]
[1724060479222,0.58689798,2621.7,2621.6,3.81446]
[1724060479953,0.8007507,2621.8,2621.6,3.81446]
[1724060480261,0.58689798,2621.7,2621.6,3.81446]
[1724060480572,0.8007507,2621.8,2621.6,3.81446]
[1724060480742,0.58689798,2621.7,2621.6,3.81446]
[1724060480949,0.8007507,2621.8,2621.6,3.81446]
[1724060481151,0.58689798,2621.7,2621.6,3.81446]
[1724060481365,0.8007507,2621.8,2621.6,3.81446]
[1724060481663,0.58689798,2621.7,2621.6,3.81446]
[1724060481977,0.8007507,2621.8,2621.6,3.81446]
[1724060482178,0.58689798,2621.7,2621.6,3.81446]
[1724060482634,0.8007507,2621.8,2621.6,3.81446]
[1724060482839,0.58689798,2621.7,2621.6,3.81446]
[1724060483240,0.8007507,2621.9,2621.6,3.81446]
[1724060483442,0.58710859,2621.7,2621.6,3.81446]
[1724060483695,0.8007507,2621.8,2621.6,3.81446]
[1724060483870,0.58710859,2621.7,2621.6,3.81446]
[1724060484169,0.8007507,2621.8,2621.6,3.81446]
[1724060484333,0.58710859,2621.7,2621.6,3.81446]
[1724060484538,0.8007507,2621.8,2621.6,3.81446]
[1724060484764,0.58710859,2621.7,2621.6,3.81446]
[1724060485239,0.8007507,2621.8,2621.6,3.81446]
[1724060485462,0.58710859,2621.7,2621.6,3.81446]
[1724060485856,0.8007507,2621.8,2621.6,3.81446]
[1724060486059,0.58710859,2621.7,2621.6,3.81446]
[1724060486473,0.8007507,2621.8,2621.6,3.81446]
[1724060486652,0.58710859,2621.7,2621.6,3.81446]
[1724060487042,0.8007507,2621.8,2621.6,3.81446]
[1724060487293,1.20112605,2621.9,2621.7,2.4772]
[1724060487294,0.8007507,2621.9,2621.7,2.4772]
[1724060487449,1.20112605,2622.0,2621.7,2.4772]
[1724060487450,0.8007507,2622.0,2621.9,7.62804]
[1724060487656,0.8007507,2622.0,2621.7,6.29138]
[1724060487891,0.8007507,2622.0,2621.9,3.814]
[1724060489283,2.29500401,2622.0,2621.6,3.81433]
[1724060489462,1.09387796,2622.0,2621.6,3.81433]
[1724060490096,0.79965801,2621.8,2621.6,3.81433]
[1724060490292,0.79965801,2621.8,2621.7,3.81431]
[1724060490447,1.19948701,2621.9,2621.7,3.81431]
[1724060490647,0.79975565,2621.8,2621.7,3.81431]
[1724060491598,1.19948701,2621.9,2621.7,3.81431]
[1724060491743,1.19948701,2621.9,2621.7,3.8142]
[1724060491946,0.79984017,2621.8,2621.7,3.8142]
[1724060492586,0.79984017,2621.8,2621.7,6.2414]
[1724060493972,0.79984017,2621.8,2621.7,3.8142]
[1724060494168,1.19948701,2621.9,2621.7,3.8142]
[1724060494408,1.19948701,2621.8,2621.6,3.81444]
[1724060494587,0.8001471,2621.7,2621.6,3.81438]
[1724060495040,1.19948701,2621.8,2621.6,3.81438]
[1724060495190,0.80015991,2621.7,2621.6,3.81438]
[1724060495394,1.19948701,2621.8,2621.6,3.81438]
[1724060495990,0.58715972,2621.7,2621.6,3.81438]
[1724060496278,1.19948701,2621.8,2621.5,3.81459]
[1724060496623,0.80022218,2621.6,2621.5,3.81459]
[1724060497191,1.3873819,2621.6,2621.4,3.81475]
[1724060497701,0.80022218,2621.5,2621.4,3.81475]
[1724060498019,0.80022218,2621.6,2621.4,6.81475]
[1724060498310,0.80022218,2621.6,2621.5,3.8146]
[1724060498712,1.19948701,2621.7,2621.5,3.8146]
[1724060498874,0.8004613,2621.6,2621.5,3.8146]
[1724060499075,1.19948701,2621.7,2621.5,3.8146]
[1724060499283,0.80045524,2621.6,2621.5,3.8146]
[1724060499489,1.19948701,2621.7,2621.5,3.8146]
[1724060499887,1.19948701,2621.7,2621.4,6.81475]
[1724060500085,0.80054635,2621.5,2621.4,6.81475]
[1724060502417,1.19948701,2621.6,2621.4,6.81475]
[1724060502727,1.19948701,2621.6,2621.4,6.81468]
[1724060503613,1.19948701,2621.5,2621.4,6.81468]
[1724060504021,1.19948701,2621.6,2621.4,6.81468]
[1724060504391,1.19948701,2621.5,2621.4,6.81468]
[1724060504581,1.19948701,2621.5,2621.2,3.81491]
[1724060504582,1.59931602,2621.5,2621.2,3.81497]
[1724060504807,1.20184565,2621.3,2621.2,3.81497]
[1724060505318,1.20184565,2621.3,2621.1,3.81516]
[1724060505524,1.20184565,2621.2,2621.1,3.81516]
[1724060505909,1.20184565,2621.2,2621.1,6.81516]
[1724060506392,1.20184565,2621.3,2621.1,6.81516]
[1724060506886,1.20184565,2621.2,2621.1,6.81516]
[1724060507086,1.4822763,2621.2,2621.0,6.17021]
[1724060507282,1.88289152,2621.2,2620.9,3.81545]
[1724060507514,0.80108813,2621.0,2620.9,3.81545]
[1724060507712,1.20162819,2621.1,2620.9,3.81545]
[1724060508316,0.80102884,2621.0,2620.9,3.81545]
[1724060508488,1.20162819,2621.1,2620.9,6.81545]
[1724060509302,0.80100119,2621.0,2620.9,6.81545]
[1724060510320,0.80100119,2621.0,2620.9,10.63093]
[1724060510524,1.20162819,2621.2,2621.0,3.81533]
[1724060510725,1.20162819,2621.2,2621.0,5.45233]
[1724060511134,0.58702435,2621.1,2621.0,5.45233]
[1724060511310,1.38772085,2621.1,2621.0,5.45233]
[1724060511907,0.58702435,2621.1,2621.0,5.45233]
[1724060512236,0.58702435,2621.1,2621.0,3.81533]
[1724060512393,1.38753813,2621.1,2621.0,3.81533]
[1724060515142,0.58702435,2621.1,2621.0,5.45233]
[1724060520917,0.80051378,2621.3,2621.1,3.81518]
[1724060521938,0.80051378,2621.2,2621.1,3.81518]
[1724060522653,0.80051378,2621.3,2621.1,3.81518]
[1724060523160,0.80051378,2621.2,2621.1,6.07778]
[1724060523317,0.80051378,2621.3,2621.1,6.07778]
[1724060523656,0.80051378,2621.2,2621.1,6.07778]
[1724060524253,0.80051378,2621.2,2621.1,3.81518]
[1724060526116,1.38740275,2621.2,2621.1,3.81518]
[1724060527549,1.38740275,2621.2,2621.0,5.45232]
[1724060530110,1.38740275,2621.2,2621.0,3.81532]
[1724060530523,1.38740275,2621.2,2620.8,5.45259]
[1724060530524,0.80051378,2621.1,2620.8,3.8156]
[1724060530762,0.80051378,2621.1,2620.9,3.81548]
[1724060530956,0.58685287,2621.0,2620.9,3.81548]
[1724060534357,0.80051378,2621.2,2620.9,3.81548]
[1724060534560,0.58685287,2621.0,2620.9,3.81548]
[1724060534764,0.80051378,2621.1,2620.9,3.81548]
[1724060535058,0.58685287,2621.0,2620.9,3.81548]
[1724060535860,0.58685287,2621.0,2620.8,5.45261]
[1724060536959,1.38736665,2621.0,2620.8,5.45261]
[1724060537457,0.80051378,2620.9,2620.7,3.81569]
[1724060537756,0.80051378,2620.9,2620.7,7.6314]
[1724060537958,0.58685287,2620.8,2620.7,7.6314]
[1724060538161,0.58685287,2620.8,2620.7,10.6314]
[1724060538328,0.58685287,2620.8,2620.7,6.81569]
[1724060538858,4.40253287,2620.8,2620.4,6.17008]
[1724060539045,5.20254029,2620.8,2620.5,3.0]
[1724060539248,0.80000742,2620.7,2620.5,3.0]
[1724060539464,1.38680309,2620.7,2620.5,3.0]
[1724060539829,2.02721422,2620.7,2620.2,2.3749]
[1724060540027,0.80000742,2620.4,2620.2,3.81644]
[1724060540543,0.80000742,2620.4,2620.3,3.81635]
[1724060540735,0.80000742,2620.5,2620.3,3.81635]
[1724060541172,0.58679567,2620.4,2620.3,3.81635]
[1724060541335,1.38680309,2620.4,2620.3,3.81635]
[1724060541536,0.58679567,2620.4,2620.3,3.81635]
[1724060542898,0.58679567,2620.4,2620.3,5.45335]
[1724060543847,0.80000742,2620.6,2620.3,7.82505]
[1724060544049,0.58679567,2620.4,2620.3,7.82505]
[1724060544360,0.80000742,2620.6,2620.3,7.82505]
[1724060544567,0.58679567,2620.4,2620.3,7.82505]
[1724060544778,0.80000742,2620.6,2620.3,7.82505]
[1724060544984,0.58679567,2620.4,2620.3,7.82505]
[1724060545191,0.80000742,2620.6,2620.3,7.82505]
[1724060545384,0.58679567,2620.4,2620.3,7.82505]
[1724060545563,0.80000742,2620.6,2620.3,7.82505]
[1724060545764,0.58679567,2620.4,2620.3,7.82505]
[1724060546106,4.61579742,2620.7,2620.3,7.82498]
[1724060546306,0.58679567,2620.4,2620.3,7.82496]
[1724060546478,0.80000742,2620.7,2620.3,7.82496]
[1724060546655,0.58679567,2620.4,2620.3,7.82496]
[1724060546862,0.80000742,2620.7,2620.3,7.82496]
[1724060547101,0.58679567,2620.4,2620.3,7.82496]
[1724060547282,0.80000742,2620.6,2620.3,7.82496]
[1724060547597,0.80000742,2620.6,2620.3,5.45326]
[1724060547759,0.58679567,2620.5,2620.3,5.45326]
[1724060548557,0.80000742,2620.6,2620.3,5.45326]
[1724060548760,0.58679567,2620.4,2620.3,5.45326]
[1724060549157,0.80000742,2620.6,2620.3,5.45326]
[1724060549370,0.58679567,2620.4,2620.3,5.45326]
[1724060549573,0.80000742,2620.6,2620.3,5.45326]
[1724060549776,0.58679567,2620.4,2620.3,5.45326]
[1724060550272,0.80000742,2620.6,2620.3,5.45326]
[1724060550473,0.58679567,2620.4,2620.3,5.45326]
[1724060550686,0.80000742,2620.6,2620.3,5.45326]
[1724060550886,0.58679567,2620.4,2620.3,5.45326]
[1724060551163,0.80000742,2620.6,2620.3,5.45326]
[1724060551664,0.58679567,2620.5,2620.3,5.45326]
[1724060551865,0.58679567,2620.5,2620.2,3.81647]
[1724060552066,2.02722422,2620.5,2620.2,3.81647]
[1724060552469,2.02722422,2620.5,2620.2,7.86681]
[1724060552698,0.58679567,2620.5,2620.2,7.86681]
[1724060553005,2.98499567,2620.5,2620.2,5.45341]
[1724060553669,7.60114309,2620.5,2620.1,3.81662]
[1724060554079,8.86301222,2620.5,2620.1,3.81662]
[1724060555082,3.81621,2620.4,2620.0,6.81677]
[1724060555269,5.20291679,2620.4,2620.0,4.637]
[1724060555470,5.20291679,2620.4,2620.0,1.637]
[1724060555471,3.81636,2620.3,2620.0,1.637]
[1724060555708,4.61636742,2620.3,2619.8,5.45408]
[1724060556021,4.61636742,2620.3,2619.9,3.0]
[1724060556022,2.8748375,2620.2,2619.9,3.0]
[1724060556169,3.46133523,2620.2,2619.9,3.0]
[1724060557514,0.80777027,2620.1,2619.9,3.0]
[1724060557814,4.62448027,2620.1,2619.7,3.0]
[1724060558022,0.58649773,2620.0,2619.7,3.0]
[1724060558176,4.40329773,2620.0,2619.7,3.0]
[1724060558483,2.3751,2619.9,2619.7,3.0]
[1724060558685,2.3751,2619.9,2619.5,9.27184]
[1724060558884,0.58649773,2619.8,2619.6,3.0]
[1724060559109,0.58649773,2619.8,2619.5,5.4544]
[1724060559415,0.58649773,2619.8,2619.5,9.27187]
[1724060559590,0.58649773,2619.8,2619.5,5.45442]
[1724060562108,1.6460315,2619.8,2619.3,3.0]
[1724060562311,3.81742,2619.6,2619.0,2.3597]
[1724060562535,3.81742,2619.6,2619.0,3.9967]
[1724060562536,6.20932,2619.6,2619.0,3.9967]
[1724060562850,4.40408773,2619.5,2619.0,11.63307]
[1724060563145,4.40408773,2619.5,2619.1,3.81809]
[1724060564236,4.40401773,2619.5,2619.1,3.81809]
[1724060564618,0.58649773,2619.5,2619.2,1.637]
[1724060565636,0.58649773,2619.5,2619.2,5.45495]
[1724060566304,0.58649773,2619.5,2619.4,1.637]
[1724060566525,2.4332,2619.9,2619.4,1.637]
[1724060566725,0.58613936,2619.5,2619.4,1.637]
[1724060567041,0.70501174,2619.8,2619.3,2.4246]
[1724060567042,7.63427,2619.8,2619.3,3.81779]
[1724060567240,0.58613936,2619.5,2619.3,3.81779]
[1724060567485,0.58613936,2619.4,2619.3,3.81779]
[1724060568445,0.58613936,2619.4,2619.2,7.63582]
[1724060568648,3.81737,2619.6,2619.2,7.63575]
[1724060568864,3.81725,2619.7,2619.3,1.637]
[1724060569046,0.58613936,2619.6,2619.3,1.637]
[1724060569265,0.58613936,2619.6,2619.3,5.4548]
[1724060571396,4.40356936,2619.6,2619.2,3.81795]
[1724060572258,0.58613936,2619.6,2619.2,7.63584]
[1724060572784,0.58613936,2619.6,2619.3,5.45478]
[1724060584668,0.58613936,2619.6,2619.3,1.637]
[1724060586411,4.40350936,2619.6,2619.3,1.637]
[1724060590020,0.58613936,2619.6,2619.3,1.637]
[1724060591413,0.58613936,2619.6,2619.3,5.45474]
[1724060591792,8.43426742,2619.8,2619.3,5.45474]
[1724060591995,0.58619659,2619.5,2619.3,5.45474]
[1724060592308,0.58619659,2619.4,2619.3,5.45474]
[1724060592513,3.81723,2619.7,2619.3,5.45474]
[1724060592840,0.58619659,2619.4,2619.3,5.45474]
[1724060593501,4.61723742,2619.7,2619.3,5.45474]
[1724060593715,0.56952993,2619.4,2619.3,5.45474]
[1724060593914,4.61723742,2619.7,2619.3,5.45474]
[1724060594096,0.56952993,2619.4,2619.3,5.45474]
[1724060594425,4.61723742,2619.7,2619.3,5.45474]
[1724060594593,0.56952993,2619.4,2619.3,5.45474]
[1724060595303,4.61723742,2619.7,2619.3,5.45474]
[1724060595625,0.56952993,2619.4,2619.3,5.45474]
[1724060595804,5.98439807,2619.7,2619.3,5.45474]
[1724060595805,4.61723742,2619.7,2619.3,5.45474]
[1724060596126,0.56952993,2619.4,2619.3,5.45474]
[1724060596302,4.61723742,2619.7,2619.3,5.45474]
[1724060596499,0.56956006,2619.4,2619.3,5.45474]
[1724060596693,0.80000742,2619.6,2619.3,5.45474]
[1724060596884,0.56956006,2619.5,2619.3,5.45474]
[1724060599452,1.36956748,2619.5,2619.3,5.45474]
[1724060600578,0.80000742,2619.4,2619.3,5.45474]
[1724060600754,1.34978275,2619.4,2619.3,3.81774]
[1724060601224,1.34978275,2619.4,2619.2,3.81793]
[1724060601624,0.80000742,2619.3,2619.2,3.81793]
[1724060602224,1.34978275,2619.3,2619.2,3.81793]
[1724060604583,0.54977533,2619.3,2619.2,3.81793]
[1724060605441,1.75140352,2619.3,2619.2,3.81793]
[1724060607837,2.15148634,2619.3,2619.2,3.81793]
[1724060608036,0.54977533,2619.3,2619.2,3.81793]
[1724060608237,2.55203459,2619.3,2619.2,3.81793]
[1724060608755,2.55203459,2619.3,2619.1,3.81809]
[1724060608953,1.6015277,2619.2,2619.1,3.81809]